[Event "Women"]
[Site "Tallinn, EE"]
[Date "2024.12.14"]
[Round "1.1"]
[White "Olde, Grete"]
[Black "Narva, Triin"]
[Result "0-1"]
[Board "3"]
[TimeControl "40/5400+30"]
[WhiteFideId "4503104"]
[BlackFideId "4502680"]
[WhiteTitle "WCM"]
[BlackTitle "WFM"]
[WhiteElo "1942"]
[BlackElo "2064"]
[WhiteTeam "EST"]
[BlackTeam "EST"]
[WhiteClock "0:05:35"]
[BlackClock "0:02:38"]
[Variant "Standard"]

1. e4 {[%clk 1:30:57]}  g6 {[%clk 1:30:44]} 2. d4 {[%clk 1:31:05]}  Bg7 {[%clk 1:31:05]} 3. Nf3 {[%clk 1:30:46]}  d6 {[%clk 1:31:21]} 4. Bc4 {[%clk 1:30:28]}  c6 {[%clk 1:29:03]} 5. Nc3 {[%clk 1:28:01]}  b5 {[%clk 1:24:27]} 6. Bb3 {[%clk 1:26:29]}  b4 {[%clk 1:22:17]} 7. Ne2 {[%clk 1:23:29]}  Nf6 {[%clk 1:18:14]} 8. Ng3 {[%clk 1:17:55]}  O-O {[%clk 1:10:54]} 9. Bg5 {[%clk 1:14:21]}  a5 {[%clk 1:03:29]} 10. a3 {[%clk 1:08:17]}  Na6 {[%clk 0:44:47]} 11. h4 {[%clk 0:59:42]}  h5 {[%clk 0:42:28]} 12. O-O {[%clk 0:50:26]}  Qc7 {[%clk 0:37:05]} 13. e5 {[%clk 0:41:44]}  Ng4 {[%clk 0:33:00]} 14. axb4 {[%clk 0:33:49]}  dxe5 {[%clk 0:25:30]} 15. Nxe5 {[%clk 0:29:45]}  Nxe5 {[%clk 0:24:44]} 16. dxe5 {[%clk 0:30:07]}  Nxb4 {[%clk 0:20:52]} 17. c3 {[%clk 0:26:39]}  Nd5 {[%clk 0:20:12]} 18. Re1 {[%clk 0:23:29]}  Be6 {[%clk 0:14:55]} 19. Bc2 {[%clk 0:21:22]}  Bg4 {[%clk 0:13:38]} 20. Qd4 {[%clk 0:17:44]}  Rfd8 {[%clk 0:12:20]} 21. Qe4 {[%clk 0:17:27]}  Qb6 {[%clk 0:10:15]} 22. Rab1 {[%clk 0:14:55]}  Rd7 {[%clk 0:08:46]} 23. Ba4 {[%clk 0:12:15]}  Rc8 {[%clk 0:05:09]} 24. c4 {[%clk 0:08:30]}  Nb4 {[%clk 0:05:08]} 25. Be3 {[%clk 0:07:28]}  Qc7 {[%clk 0:04:38]} 26. f3 {[%clk 0:06:58]}  Qxe5 {[%clk 0:01:03]} 27. Bf2 {[%clk 0:01:19]}  Qxe4 {[%clk 0:01:19]} 28. Rxe4 {[%clk 0:01:32]}  Be6 {[%clk 0:01:28]} 29. Bb6 {[%clk 0:01:19]}  Rb7 {[%clk 0:00:41]} 30. Bf2 {[%clk 0:00:33]}  Nd3 {[%clk 0:00:57]} 31. b3 {[%clk 0:00:47]}  Nxf2 {[%clk 0:00:41]} 32. Kxf2 {[%clk 0:01:11]}  Rd7 {[%clk 0:00:58]} 33. Re2 {[%clk 0:01:24]}  Rd3 {[%clk 0:00:48]} 34. Ne4 {[%clk 0:01:36]}  Bd4+ {[%clk 0:00:48]} 35. Kf1 {[%clk 0:01:37]}  Bf5 {[%clk 0:00:46]} 36. Rbe1 {[%clk 0:01:19]}  Bxe4 {[%clk 0:00:41]} 37. Rxe4 {[%clk 0:01:41]}  Bf6 {[%clk 0:00:47]} 38. R4e3 {[%clk 0:01:40]}  Rxe3 {[%clk 0:00:42]} 39. Rxe3 {[%clk 0:02:08]}  Bxh4 {[%clk 0:01:03]} 40. Rd3 {[%clk 0:17:09]}  Bf6 {[%clk 0:15:44]} 41. Rd7 {[%clk 0:15:27]}  e6 {[%clk 0:01:27]} 42. Ke2 {[%clk 0:14:31]}  c5 {[%clk 0:00:58]} 43. Ke3 {[%clk 0:12:52]}  Bc3 {[%clk 0:00:53]} 44. Kf4 {[%clk 0:10:24]}  Kg7 {[%clk 0:00:51]} 45. Bb5 {[%clk 0:08:18]}  Kf6 {[%clk 0:01:02]} 46. Ba6 {[%clk 0:07:18]}  Rb8 {[%clk 0:01:26]} 47. Bb5 {[%clk 0:07:41]}  g5+ {[%clk 0:01:20]} 48. Ke4 {[%clk 0:07:25]}  Rg8 {[%clk 0:01:07]} 49. Rd3 {[%clk 0:06:30]}  Bd4 {[%clk 0:01:01]} 50. Rd1 {[%clk 0:06:26]}  Ke7 {[%clk 0:01:03]} 51. Rd2 {[%clk 0:05:32]}  f5+ {[%clk 0:01:03]} 52. Kd3 {[%clk 0:06:00]}  g4 {[%clk 0:00:54]} 53. Bc6 {[%clk 0:05:33]}  Kd6 {[%clk 0:01:07]} 54. Bb5 {[%clk 0:05:14]}  gxf3 {[%clk 0:01:33]} 55. gxf3 {[%clk 0:05:33]}  Rg3 {[%clk 0:01:36]} 56. Rh2 {[%clk 0:04:53]}  Rxf3+ {[%clk 0:01:46]} 57. Ke2 {[%clk 0:05:18]}  Rxb3 {[%clk 0:02:01]} 58. Rxh5 {[%clk 0:05:39]}  f4 {[%clk 0:02:16]} 59. Rh7 {[%clk 0:05:35]}  f3+ {[%clk 0:02:38]} 0-1

[Event "Women"]
[Site "Tallinn, EE"]
[Date "2024.12.15"]
[Round "1.2"]
[White "Narva, Triin"]
[Black "Olde, Grete"]
[Result "0-1"]
[Board "3"]
[TimeControl "40/5400+30"]
[WhiteFideId "4502680"]
[BlackFideId "4503104"]
[WhiteTitle "WFM"]
[BlackTitle "WCM"]
[WhiteElo "2064"]
[BlackElo "1942"]
[WhiteTeam "EST"]
[BlackTeam "EST"]
[WhiteClock "0:03:35"]
[BlackClock "0:09:20"]
[Variant "Standard"]

1. e4 {[%clk 1:29:49]}  e5 {[%clk 1:30:49]} 2. Nc3 {[%clk 1:29:55]}  Nf6 {[%clk 1:31:08]} 3. Bc4 {[%clk 1:30:10]}  Bc5 {[%clk 1:31:09]} 4. Nf3 {[%clk 1:27:20]}  d6 {[%clk 1:30:08]} 5. d4 {[%clk 1:24:26]}  exd4 {[%clk 1:27:41]} 6. Nxd4 {[%clk 1:24:51]}  O-O {[%clk 1:24:49]} 7. O-O {[%clk 1:23:46]}  Re8 {[%clk 1:22:57]} 8. f3 {[%clk 1:09:54]}  c6 {[%clk 1:11:50]} 9. Kh1 {[%clk 0:54:18]}  b5 {[%clk 1:01:35]} 10. Be2 {[%clk 0:52:36]}  Bb6 {[%clk 0:58:05]} 11. Bg5 {[%clk 0:29:39]}  h6 {[%clk 0:50:10]} 12. Bh4 {[%clk 0:29:54]}  g5 {[%clk 0:43:41]} 13. Bf2 {[%clk 0:29:59]}  Bd7 {[%clk 0:38:41]} 14. Qd2 {[%clk 0:27:58]}  b4 {[%clk 0:33:41]} 15. Nd1 {[%clk 0:24:14]}  d5 {[%clk 0:32:32]} 16. exd5 {[%clk 0:20:03]}  Nxd5 {[%clk 0:32:10]} 17. Bc4 {[%clk 0:19:28]}  Nf4 {[%clk 0:28:40]} 18. Ne3 {[%clk 0:13:09]}  Qf6 {[%clk 0:25:28]} 19. c3 {[%clk 0:07:49]}  Rd8 {[%clk 0:22:17]} 20. Qc2 {[%clk 0:07:06]}  c5 {[%clk 0:16:34]} 21. Ndf5 {[%clk 0:06:55]}  h5 {[%clk 0:15:05]} 22. Rad1 {[%clk 0:05:21]}  Bc7 {[%clk 0:14:09]} 23. Ng3 {[%clk 0:01:46]}  Nc6 {[%clk 0:10:57]} 24. Ne4 {[%clk 0:00:41]}  Qe5 {[%clk 0:10:49]} 25. g3 {[%clk 0:00:44]}  Nh3 {[%clk 0:10:17]} 26. Rd5 {[%clk 0:00:52]}  Qg7 {[%clk 0:09:07]} 27. Nxc5 {[%clk 0:00:59]}  Bc8 {[%clk 0:07:27]} 28. Rxd8+ {[%clk 0:01:13]}  Bxd8 {[%clk 0:06:57]} 29. Qe4 {[%clk 0:01:09]}  Qf6 {[%clk 0:06:21]} 30. Nd5 {[%clk 0:00:42]}  Qf5 {[%clk 0:05:53]} 31. Kg2 {[%clk 0:00:34]}  Ne5 {[%clk 0:04:45]} 32. Qxf5 {[%clk 0:00:44]}  Bxf5 {[%clk 0:05:09]} 33. Ne3 {[%clk 0:00:42]}  Nxf2 {[%clk 0:04:51]} 34. Nxf5 {[%clk 0:00:34]}  Nxc4 {[%clk 0:04:56]} 35. Rxf2 {[%clk 0:00:35]}  bxc3 {[%clk 0:05:05]} 36. Na4 {[%clk 0:00:36]}  cxb2 {[%clk 0:04:04]} 37. Nxb2 {[%clk 0:01:03]}  Ne5 {[%clk 0:04:03]} 38. Re2 {[%clk 0:00:55]}  Bf6 {[%clk 0:03:17]} 39. Nd1 {[%clk 0:01:05]}  Kh7 {[%clk 0:03:05]} 40. Nf2 {[%clk 0:15:50]}  Kg6 {[%clk 0:17:54]} 41. Ne7+ {[%clk 0:07:40]}  Bxe7 {[%clk 0:16:40]} 42. Rxe5 {[%clk 0:08:06]}  Bf6 {[%clk 0:16:36]} 43. Re2 {[%clk 0:06:14]}  Rb8 {[%clk 0:16:20]} 44. g4 {[%clk 0:04:44]}  hxg4 {[%clk 0:14:21]} 45. fxg4 {[%clk 0:05:07]}  a5 {[%clk 0:13:11]} 46. Ne4 {[%clk 0:04:36]}  Bd4 {[%clk 0:11:28]} 47. Rd2 {[%clk 0:04:37]}  Rb4 {[%clk 0:11:19]} 48. Kf3 {[%clk 0:03:33]}  Ra4 {[%clk 0:09:19]} 49. Ng3 {[%clk 0:00:50]}  Be5 {[%clk 0:08:55]} 50. Ne4 {[%clk 0:00:32]}  f6 {[%clk 0:08:10]} 51. Re2 {[%clk 0:00:43]}  Rb4 {[%clk 0:06:38]} 52. h3 {[%clk 0:00:40]}  Ra4 {[%clk 0:06:44]} 53. Kg2 {[%clk 0:00:32]}  Ra3 {[%clk 0:06:48]} 54. Nf2 {[%clk 0:00:33]}  Rg3+ {[%clk 0:06:42]} 55. Kh1 {[%clk 0:00:32]}  Kf7 {[%clk 0:06:11]} 56. Re4 {[%clk 0:00:37]}  Ra3 {[%clk 0:05:10]} 57. Re2 {[%clk 0:01:02]}  Ke6 {[%clk 0:05:26]} 58. Kg2 {[%clk 0:01:01]}  Rg3+ {[%clk 0:05:27]} 59. Kf1 {[%clk 0:01:19]}  Kd5 {[%clk 0:05:24]} 60. Rd2+ {[%clk 0:01:16]}  Bd4 {[%clk 0:04:46]} 61. Rc2 {[%clk 0:00:32]}  Rf3 {[%clk 0:04:24]} 62. Kg2 {[%clk 0:00:35]}  Rxf2+ {[%clk 0:04:32]} 63. Rxf2 {[%clk 0:01:02]}  Bxf2 {[%clk 0:04:56]} 64. Kxf2 {[%clk 0:01:29]}  Kd4 {[%clk 0:05:18]} 65. Kf3 {[%clk 0:01:34]}  a4 {[%clk 0:05:25]} 66. Ke2 {[%clk 0:01:00]}  Kc3 {[%clk 0:05:50]} 67. Kd1 {[%clk 0:00:33]}  Kb2 {[%clk 0:06:14]} 68. a3 {[%clk 0:00:32]}  Kxa3 {[%clk 0:06:39]} 69. Kc2 {[%clk 0:01:00]}  Kb4 {[%clk 0:07:01]} 70. Kb2 {[%clk 0:01:26]}  Kc4 {[%clk 0:07:25]} 71. Ka3 {[%clk 0:01:54]}  Kd4 {[%clk 0:07:48]} 72. Kxa4 {[%clk 0:02:22]}  Ke4 {[%clk 0:08:10]} 73. Kb4 {[%clk 0:02:49]}  Kf4 {[%clk 0:08:32]} 74. Kc4 {[%clk 0:03:09]}  Kg3 {[%clk 0:08:56]} 75. Kd4 {[%clk 0:03:35]}  Kxh3 {[%clk 0:09:20]} 0-1

[Event "Women"]
[Site "Tallinn, EE"]
[Date "2024.12.15"]
[Round "1.3"]
[White "Olde, Grete"]
[Black "Narva, Triin"]
[Result "1-0"]
[Board "2"]
[TimeControl "900+3"]
[WhiteFideId "4503104"]
[BlackFideId "4502680"]
[WhiteTitle "WCM"]
[BlackTitle "WFM"]
[WhiteElo "2024"]
[BlackElo "2086"]
[WhiteTeam "EST"]
[BlackTeam "EST"]
[WhiteClock "0:00:17"]
[BlackClock "0:00:06"]
[Variant "Standard"]

1. e4 {[%clk 0:15:05]}  d5 {[%clk 0:15:04]} 2. exd5 {[%clk 0:15:06]}  Qxd5 {[%clk 0:15:06]} 3. Nc3 {[%clk 0:15:07]}  Qd6 {[%clk 0:15:08]} 4. d4 {[%clk 0:15:08]}  Nf6 {[%clk 0:15:09]} 5. Nf3 {[%clk 0:15:09]}  Nc6 {[%clk 0:15:10]} 6. Nb5 {[%clk 0:15:06]}  Qd8 {[%clk 0:15:11]} 7. c4 {[%clk 0:15:06]}  a6 {[%clk 0:15:08]} 8. Nc3 {[%clk 0:15:06]}  Bg4 {[%clk 0:14:21]} 9. d5 {[%clk 0:15:03]}  Ne5 {[%clk 0:13:38]} 10. Be2 {[%clk 0:14:46]}  Ng6 {[%clk 0:11:26]} 11. O-O {[%clk 0:12:31]}  e5 {[%clk 0:04:43]} 12. dxe6 {[%clk 0:09:49]}  Bxe6 {[%clk 0:04:42]} 13. Nd4 {[%clk 0:09:33]}  Bd7 {[%clk 0:04:29]} 14. Bf3 {[%clk 0:08:25]}  c6 {[%clk 0:04:21]} 15. Qb3 {[%clk 0:06:16]}  Rb8 {[%clk 0:03:44]} 16. Ne4 {[%clk 0:05:56]}  Nxe4 {[%clk 0:02:40]} 17. Bxe4 {[%clk 0:05:58]}  Bd6 {[%clk 0:02:40]} 18. Nf3 {[%clk 0:03:04]}  Qc7 {[%clk 0:01:12]} 19. Rd1 {[%clk 0:02:20]}  Bg4 {[%clk 0:00:55]} 20. h3 {[%clk 0:01:31]}  Bxf3 {[%clk 0:00:56]} 21. Qxf3 {[%clk 0:01:22]}  O-O {[%clk 0:00:57]} 22. b3 {[%clk 0:01:01]}  Be5 {[%clk 0:00:58]} 23. Rb1 {[%clk 0:01:03]}  Rbd8 {[%clk 0:00:55]} 24. Ba3 {[%clk 0:01:01]}  Rfe8 {[%clk 0:00:46]} 25. h4 {[%clk 0:00:57]}  Qa5 {[%clk 0:00:17]} 26. b4 {[%clk 0:00:54]}  Qa4 {[%clk 0:00:14]} 27. h5 {[%clk 0:00:46]}  Nf4 {[%clk 0:00:07]} 28. Rxd8 {[%clk 0:00:33]}  Rxd8 {[%clk 0:00:10]} 29. Bxh7+ {[%clk 0:00:24]}  Kxh7 {[%clk 0:00:09]} 30. Qe4+ {[%clk 0:00:26]}  Kg8 {[%clk 0:00:06]} 31. Qxe5 {[%clk 0:00:26]}  Nd3 {[%clk 0:00:06]} 32. Qg5 {[%clk 0:00:15]}  Re8 {[%clk 0:00:06]} 33. h6 {[%clk 0:00:12]}  g6 {[%clk 0:00:04]} 34. Qf6 {[%clk 0:00:13]}  Re1+ {[%clk 0:00:05]} 35. Rxe1 {[%clk 0:00:15]}  Nxe1 {[%clk 0:00:06]} 36. Qg7# {[%clk 0:00:17]} 1-0

[Event "Women"]
[Site "Tallinn, EE"]
[Date "2024.12.15"]
[Round "1.4"]
[White "Narva, Triin"]
[Black "Olde, Grete"]
[Result "1-0"]
[Board "2"]
[TimeControl "900+3"]
[WhiteFideId "4502680"]
[BlackFideId "4503104"]
[WhiteTitle "WFM"]
[BlackTitle "WCM"]
[WhiteElo "2086"]
[BlackElo "2024"]
[WhiteTeam "EST"]
[BlackTeam "EST"]
[WhiteClock "0:00:02"]
[BlackClock "0:00:01"]
[Variant "Standard"]

1. e4 {[%clk 0:15:05]}  e5 {[%clk 0:15:05]} 2. Nc3 {[%clk 0:15:05]}  Nf6 {[%clk 0:15:06]} 3. Bc4 {[%clk 0:15:06]}  Nc6 {[%clk 0:14:47]} 4. d3 {[%clk 0:15:04]}  Bc5 {[%clk 0:14:35]} 5. Nf3 {[%clk 0:15:01]}  d6 {[%clk 0:14:36]} 6. Na4 {[%clk 0:14:43]}  Be6 {[%clk 0:14:04]} 7. Bxe6 {[%clk 0:14:37]}  fxe6 {[%clk 0:14:04]} 8. Nxc5 {[%clk 0:14:37]}  dxc5 {[%clk 0:14:05]} 9. Bg5 {[%clk 0:13:55]}  Qe7 {[%clk 0:12:57]} 10. c3 {[%clk 0:10:58]}  O-O-O {[%clk 0:11:59]} 11. Qc2 {[%clk 0:11:00]}  h6 {[%clk 0:11:18]} 12. Bh4 {[%clk 0:10:59]}  g5 {[%clk 0:09:47]} 13. Bg3 {[%clk 0:11:01]}  Nd7 {[%clk 0:09:47]} 14. O-O-O {[%clk 0:10:43]}  h5 {[%clk 0:09:17]} 15. h4 {[%clk 0:10:04]}  g4 {[%clk 0:09:03]} 16. Ng5 {[%clk 0:07:19]}  Nf8 {[%clk 0:08:37]} 17. Qb3 {[%clk 0:07:18]}  Rd6 {[%clk 0:08:04]} 18. f4 {[%clk 0:07:05]}  Ng6 {[%clk 0:06:20]} 19. f5 {[%clk 0:06:21]}  Nf8 {[%clk 0:05:46]} 20. Rhf1 {[%clk 0:06:08]}  Na5 {[%clk 0:05:28]} 21. Qa4 {[%clk 0:05:26]}  Ra6 {[%clk 0:05:25]} 22. f6 {[%clk 0:04:46]}  Qd7 {[%clk 0:04:38]} 23. Qxd7+ {[%clk 0:04:47]}  Nxd7 {[%clk 0:04:15]} 24. Nf7 {[%clk 0:04:49]}  Rf8 {[%clk 0:04:05]} 25. Nxe5 {[%clk 0:04:50]}  Nxe5 {[%clk 0:03:57]} 26. Bxe5 {[%clk 0:04:52]}  Nc6 {[%clk 0:04:00]} 27. Bf4 {[%clk 0:02:20]}  Rxf6 {[%clk 0:02:47]} 28. Bg5 {[%clk 0:02:21]}  Rxf1 {[%clk 0:02:48]} 29. Rxf1 {[%clk 0:02:23]}  Ne5 {[%clk 0:02:41]} 30. Rf8+ {[%clk 0:02:04]}  Kd7 {[%clk 0:02:43]} 31. Rd8+ {[%clk 0:02:06]}  Kc6 {[%clk 0:02:42]} 32. Bf6 {[%clk 0:01:57]}  Nd7 {[%clk 0:02:30]} 33. e5 {[%clk 0:01:33]}  Rxa2 {[%clk 0:02:23]} 34. Kb1 {[%clk 0:01:29]}  Ra4 {[%clk 0:02:16]} 35. c4 {[%clk 0:01:32]}  b5 {[%clk 0:02:12]} 36. cxb5+ {[%clk 0:01:32]}  Kxb5 {[%clk 0:02:09]} 37. Rxd7 {[%clk 0:01:34]}  Rf4 {[%clk 0:01:42]} 38. Bg5 {[%clk 0:01:11]}  Rf5 {[%clk 0:01:31]} 39. Rxc7 {[%clk 0:00:59]}  Rxe5 {[%clk 0:01:24]} 40. Rxa7 {[%clk 0:01:01]}  Re2 {[%clk 0:01:23]} 41. g3 {[%clk 0:01:02]}  e5 {[%clk 0:01:16]} 42. Re7 {[%clk 0:00:31]}  c4 {[%clk 0:00:50]} 43. dxc4+ {[%clk 0:00:22]}  Kxc4 {[%clk 0:00:52]} 44. Kc1 {[%clk 0:00:09]}  Kd3 {[%clk 0:00:34]} 45. Rd7+ {[%clk 0:00:09]}  Kc4 {[%clk 0:00:27]} 46. Rc7+ {[%clk 0:00:07]}  Kd3 {[%clk 0:00:26]} 47. Rc3+ {[%clk 0:00:09]}  Kd4 {[%clk 0:00:22]} 48. Rc2 {[%clk 0:00:06]}  Re1+ {[%clk 0:00:17]} 49. Kd2 {[%clk 0:00:09]}  Rf1 {[%clk 0:00:13]} 50. Be3+ {[%clk 0:00:10]}  Ke4 {[%clk 0:00:13]} 51. Rc4+ {[%clk 0:00:11]}  Kf3 {[%clk 0:00:13]} 52. Rc6 {[%clk 0:00:08]}  Kxg3 {[%clk 0:00:13]} 53. Bg5 {[%clk 0:00:09]}  Rf2+ {[%clk 0:00:13]} 54. Kc3 {[%clk 0:00:10]}  e4 {[%clk 0:00:12]} 55. Re6 {[%clk 0:00:12]}  Rf3+ {[%clk 0:00:08]} 56. Kd4 {[%clk 0:00:10]}  Rb3 {[%clk 0:00:05]} 57. Rxe4 {[%clk 0:00:10]}  Rxb2 {[%clk 0:00:07]} 58. Re3+ {[%clk 0:00:11]}  Kf2 {[%clk 0:00:07]} 59. Ke4 {[%clk 0:00:08]}  Rb4+ {[%clk 0:00:07]} 60. Kf5 {[%clk 0:00:11]}  Rb5+ {[%clk 0:00:07]} 61. Kf4 {[%clk 0:00:12]}  Rb4+ {[%clk 0:00:05]} 62. Re4 {[%clk 0:00:07]}  Rb3 {[%clk 0:00:05]} 63. Kf5 {[%clk 0:00:05]}  g3 {[%clk 0:00:05]} 64. Rf4+ {[%clk 0:00:06]}  Rf3 {[%clk 0:00:01]} 65. Ke4 {[%clk 0:00:02]} 1-0

[Event "Women"]
[Site "Tallinn, EE"]
[Date "2024.12.15"]
[Round "1.5"]
[White "Olde, Grete"]
[Black "Narva, Triin"]
[Result "1-0"]
[Board "2"]
[TimeControl "180+2"]
[WhiteFideId "4503104"]
[BlackFideId "4502680"]
[WhiteTitle "WCM"]
[BlackTitle "WFM"]
[WhiteElo "1966"]
[BlackElo "2060"]
[WhiteTeam "EST"]
[BlackTeam "EST"]
[WhiteClock "0:00:12"]
[BlackClock "0:00:11"]
[Variant "Standard"]

1. e4 {[%clk 0:03:03]}  g6 {[%clk 0:03:03]} 2. d4 {[%clk 0:03:04]}  Bg7 {[%clk 0:03:04]} 3. Nc3 {[%clk 0:03:05]}  d6 {[%clk 0:03:06]} 4. Be3 {[%clk 0:03:06]}  Nd7 {[%clk 0:02:56]} 5. Qd2 {[%clk 0:03:05]}  c6 {[%clk 0:02:53]} 6. f3 {[%clk 0:03:02]}  a6 {[%clk 0:02:44]} 7. h4 {[%clk 0:03:01]}  h5 {[%clk 0:02:44]} 8. Nh3 {[%clk 0:03:01]}  b5 {[%clk 0:02:44]} 9. a3 {[%clk 0:02:45]}  Bb7 {[%clk 0:02:12]} 10. Qf2 {[%clk 0:02:01]}  Ngf6 {[%clk 0:01:47]} 11. Bd3 {[%clk 0:01:55]}  Rc8 {[%clk 0:01:45]} 12. Ne2 {[%clk 0:01:36]}  c5 {[%clk 0:01:44]} 13. c3 {[%clk 0:01:33]}  cxd4 {[%clk 0:01:33]} 14. Bxd4 {[%clk 0:01:13]}  Nc5 {[%clk 0:01:33]} 15. Bc2 {[%clk 0:01:07]}  Ne6 {[%clk 0:01:29]} 16. Bb6 {[%clk 0:00:55]}  Qd7 {[%clk 0:01:28]} 17. Ng5 {[%clk 0:00:49]}  Nh7 {[%clk 0:00:34]} 18. Nxh7 {[%clk 0:00:38]}  Rxh7 {[%clk 0:00:35]} 19. O-O {[%clk 0:00:30]}  Bf6 {[%clk 0:00:29]} 20. Bb3 {[%clk 0:00:28]}  Nc5 {[%clk 0:00:28]} 21. Bxc5 {[%clk 0:00:25]}  Rxc5 {[%clk 0:00:29]} 22. Rad1 {[%clk 0:00:21]}  Qc8 {[%clk 0:00:11]} 23. Nf4 {[%clk 0:00:20]}  Kf8 {[%clk 0:00:07]} 24. Bd5 {[%clk 0:00:21]}  Be5 {[%clk 0:00:05]} 25. Bxb7 {[%clk 0:00:20]}  Qxb7 {[%clk 0:00:06]} 26. Nd5 {[%clk 0:00:18]}  e6 {[%clk 0:00:07]} 27. Ne3 {[%clk 0:00:14]}  Rc7 {[%clk 0:00:04]} 28. f4 {[%clk 0:00:15]}  Bf6 {[%clk 0:00:05]} 29. Rxd6 {[%clk 0:00:15]}  Qxe4 {[%clk 0:00:06]} 30. Rfd1 {[%clk 0:00:13]}  Bxh4 {[%clk 0:00:06]} 31. Qxh4 {[%clk 0:00:10]}  Qxe3+ {[%clk 0:00:07]} 32. Kh1 {[%clk 0:00:11]}  Kg7 {[%clk 0:00:05]} 33. Re1 {[%clk 0:00:07]}  Qc5 {[%clk 0:00:06]} 34. Rd8 {[%clk 0:00:07]}  Qe7 {[%clk 0:00:06]} 35. Qxe7 {[%clk 0:00:08]}  Rxe7 {[%clk 0:00:07]} 36. Ra8 {[%clk 0:00:07]}  Kf6 {[%clk 0:00:06]} 37. Rxa6 {[%clk 0:00:08]}  Kf5 {[%clk 0:00:06]} 38. g3 {[%clk 0:00:09]}  Kg4 {[%clk 0:00:07]} 39. Kg2 {[%clk 0:00:10]}  h4 {[%clk 0:00:08]} 40. gxh4 {[%clk 0:00:07]}  Rxh4 {[%clk 0:00:09]} 41. Rb6 {[%clk 0:00:06]}  Kxf4 {[%clk 0:00:08]} 42. Rxb5 {[%clk 0:00:07]}  e5 {[%clk 0:00:08]} 43. a4 {[%clk 0:00:05]}  e4 {[%clk 0:00:06]} 44. a5 {[%clk 0:00:05]}  Rg4+ {[%clk 0:00:07]} 45. Kf2 {[%clk 0:00:05]}  f5 {[%clk 0:00:09]} 46. a6 {[%clk 0:00:05]}  Rh7 {[%clk 0:00:06]} 47. Ke2 {[%clk 0:00:04]}  Rh2+ {[%clk 0:00:06]} 48. Kd1 {[%clk 0:00:05]}  Rgg2 {[%clk 0:00:07]} 49. Rf1+ {[%clk 0:00:05]}  Ke3 {[%clk 0:00:07]} 50. Re1+ {[%clk 0:00:06]}  Kf3 {[%clk 0:00:05]} 51. Rf1+ {[%clk 0:00:06]}  Kg4 {[%clk 0:00:05]} 52. a7 {[%clk 0:00:07]}  Rh8 {[%clk 0:00:05]} 53. Rb8 {[%clk 0:00:07]}  Rxb2 {[%clk 0:00:03]} 54. Rxb2 {[%clk 0:00:08]}  Ra8 {[%clk 0:00:04]} 55. Rg1+ {[%clk 0:00:08]}  Kf3 {[%clk 0:00:04]} 56. Ra2 {[%clk 0:00:08]}  e3 {[%clk 0:00:05]} 57. Rxg6 {[%clk 0:00:08]}  f4 {[%clk 0:00:05]} 58. Ke1 {[%clk 0:00:07]}  Ke4 {[%clk 0:00:04]} 59. Re6+ {[%clk 0:00:07]}  Kf3 {[%clk 0:00:05]} 60. Rb6 {[%clk 0:00:05]}  Rh8 {[%clk 0:00:05]} 61. Kd1 {[%clk 0:00:03]}  Rh1+ {[%clk 0:00:05]} 62. Kc2 {[%clk 0:00:05]}  Rh2+ {[%clk 0:00:05]} 63. Kb3 {[%clk 0:00:06]}  Rxa2 {[%clk 0:00:05]} 64. Kxa2 {[%clk 0:00:07]}  e2 {[%clk 0:00:06]} 65. Re6 {[%clk 0:00:08]}  Kf2 {[%clk 0:00:07]} 66. a8=Q {[%clk 0:00:09]}  f3 {[%clk 0:00:08]} 67. Qa7 {[%clk 0:00:08]}  Kf1 {[%clk 0:00:09]} 68. Qe3 {[%clk 0:00:08]}  Kg2 {[%clk 0:00:06]} 69. Rg6 {[%clk 0:00:09]}  Kf1 {[%clk 0:00:06]} 70. Qxf3+ {[%clk 0:00:10]}  Ke1 {[%clk 0:00:07]} 71. Re6 {[%clk 0:00:09]}  Kd1 {[%clk 0:00:08]} 72. Qxe2+ {[%clk 0:00:10]}  Kc1 {[%clk 0:00:09]} 73. Qb2+ {[%clk 0:00:10]}  Kd1 {[%clk 0:00:10]} 74. Rh6 {[%clk 0:00:10]}  Ke1 {[%clk 0:00:11]} 75. Rh1+ {[%clk 0:00:12]} 1-0

[Event "Women"]
[Site "Tallinn, EE"]
[Date "2024.12.15"]
[Round "1.6"]
[White "Narva, Triin"]
[Black "Olde, Grete"]
[Result "0-1"]
[Board "2"]
[TimeControl "180+2"]
[WhiteFideId "4502680"]
[BlackFideId "4503104"]
[WhiteTitle "WFM"]
[BlackTitle "WCM"]
[WhiteElo "2060"]
[BlackElo "1966"]
[WhiteTeam "EST"]
[BlackTeam "EST"]
[WhiteClock "0:00:06"]
[BlackClock "0:00:13"]
[Variant "Standard"]

1. e4 {[%clk 0:03:03]}  e5 {[%clk 0:03:04]} 2. Nc3 {[%clk 0:03:04]}  Nf6 {[%clk 0:03:05]} 3. Bc4 {[%clk 0:03:05]}  Bc5 {[%clk 0:03:03]} 4. Nf3 {[%clk 0:03:05]}  Nc6 {[%clk 0:03:00]} 5. d3 {[%clk 0:03:04]}  a6 {[%clk 0:02:57]} 6. a4 {[%clk 0:02:55]}  d6 {[%clk 0:02:55]} 7. O-O {[%clk 0:02:53]}  Bg4 {[%clk 0:02:49]} 8. h3 {[%clk 0:02:47]}  Bh5 {[%clk 0:02:50]} 9. Be3 {[%clk 0:02:29]}  Nd4 {[%clk 0:02:33]} 10. Bxd4 {[%clk 0:02:28]}  exd4 {[%clk 0:02:26]} 11. Nb1 {[%clk 0:02:12]}  O-O {[%clk 0:02:14]} 12. g4 {[%clk 0:01:59]}  Bg6 {[%clk 0:02:15]} 13. Bb3 {[%clk 0:01:35]}  Bb6 {[%clk 0:01:50]} 14. Nbd2 {[%clk 0:01:33]}  c6 {[%clk 0:01:38]} 15. Nh2 {[%clk 0:01:16]}  d5 {[%clk 0:01:10]} 16. f4 {[%clk 0:01:15]}  h5 {[%clk 0:00:37]} 17. f5 {[%clk 0:01:14]}  Bh7 {[%clk 0:00:38]} 18. g5 {[%clk 0:01:15]}  Nd7 {[%clk 0:00:33]} 19. Qxh5 {[%clk 0:01:16]}  Ne5 {[%clk 0:00:22]} 20. Ndf3 {[%clk 0:01:15]}  Qd6 {[%clk 0:00:20]} 21. Nh4 {[%clk 0:00:23]}  Bc7 {[%clk 0:00:15]} 22. Ng4 {[%clk 0:00:20]}  Nxg4 {[%clk 0:00:15]} 23. e5 {[%clk 0:00:14]}  Qxe5 {[%clk 0:00:13]} 24. Nf3 {[%clk 0:00:15]}  Qg3+ {[%clk 0:00:13]} 25. Kh1 {[%clk 0:00:15]}  Nf2+ {[%clk 0:00:11]} 26. Rxf2 {[%clk 0:00:15]}  Qxf2 {[%clk 0:00:12]} 27. Rg1 {[%clk 0:00:06]}  Rae8 {[%clk 0:00:12]} 28. g6 {[%clk 0:00:05]}  fxg6 {[%clk 0:00:12]} 29. fxg6 {[%clk 0:00:06]}  Bxg6 {[%clk 0:00:12]} 30. Rxg6 {[%clk 0:00:06]}  Re1+ {[%clk 0:00:11]} 31. Rg1 {[%clk 0:00:05]}  Rxg1+ {[%clk 0:00:12]} 32. Nxg1 {[%clk 0:00:06]}  Qh2# {[%clk 0:00:13]} 0-1